[Event "Austria Championship Blitz 2024"]
[Site "Innsbruck"]
[Date "2024.06.01"]
[Round "8.15"]
[White "Kuzmanovic, Zeljko"]
[Black "Keferboeck, Jewgeni"]
[Result "1/2-1/2"]
[ECO "A35"]
[WhiteElo "1866"]
[BlackElo "1957"]
[Annotator "RC"]
[PlyCount "85"]
[EventDate "2024.06.01"]
[EventType "swiss"]
[EventCountry "AUT"]
[SourceTitle "playchess.com"]
[Source "ChessBase"]
[SourceQuality "1"]
[TimeControl "180+2"]

1. Nf3 {[%emt 0:00:02]} c5 {[%emt 0:00:01]} 2. c4 {[%emt 0:00:01]} Nc6 {[%emt 0:00:01]} 3. Nc3 {[%emt 0:00:01]} Nf6 {[%emt 0:00:01]} 4. e3 {[%emt 0:00:01]} d5 {[%emt 0:00:02]} 5. d4 {[%emt 0:00:02]} cxd4 {[%emt 0:00:03]} 6. exd4 {[%emt 0:00:02]} g6 {[%emt 0:00:02]} 7. cxd5 {[%emt 0:00:08]} Nxd5 {[%emt 0:00:02]} 8. h3 {[%emt 0:00:02]} Bg7 {[%emt 0:00:07]} 9. Nxd5 {[%emt 0:00:02]} Qxd5 {[%emt 0:00:02]} 10. Be3 {[%emt 0:00:01]} O-O {[%emt 0:00:21]} 11. Qd2 {[%emt 0:00:17]} Rd8 {[%emt 0:00:35]} 12. Rd1 {[%emt 0:00:01]} Qxa2 {[%emt 0:00:26]} 13. Be2 {[%emt 0:00:22]} e5 {[%emt 0:00:13]} 14. d5 {[%emt 0:00:03]} Be6 {[%emt 0:00:10]} 15. dxe6 {[%emt 0:00:31]} Rxd2 {[%emt 0:00:02]} 16. exf7+ {[%emt 0:00:03]} Qxf7 {[%emt 0:00:16]} 17. Nxd2 {[%emt 0:00:02]} Kh8 {[%emt 0:00:14]} 18. O-O {[%emt 0:00:05]} Rd8 {[%emt 0:00:20]} 19. Bc4 {[%emt 0:00:02]} Qc7 {[%emt 0:00:06]} 20. Ba2 {[%emt 0:00:10]} Nb4 {[%emt 0:00:07]} 21. Rc1 {[%emt 0:00:15]} Qb8 {[%emt 0:00:05]} 22. Be6 {[%emt 0:00:05]} Nd3 {[%emt 0:00:12]} 23. Rc2 {[%emt 0:00:07]} b6 {[%emt 0:00:02]} 24. Ne4 {[%emt 0:00:04]} Nc5 {[%emt 0:00:06]} 25. Bxc5 {[%emt 0:00:11]} bxc5 {[%emt 0:00:01]} 26. Ng5 {[%emt 0:00:01]} Re8 {[%emt 0:00:12]} 27. Nf7+ {[%emt 0:00:04]} Kg8 {[%emt 0:00:07]} 28. Bc4 {[%emt 0:00:11]} Kf8 {[%emt 0:00:00]} 29. Ng5 {[%emt 0:00:11]} h6 {[%emt 0:00:00]} 30. Ne6+ {[%emt 0:00:02]} Kf7 {[%emt 0:00:00]} 31. Nxg7+ {[%emt 0:00:11]} Kxg7 {[%emt 0:00:01]} 32. Re1 {[%emt 0:00:03]} Re7 {[%emt 0:00:01]} 33. Rce2 {[%emt 0:00:03]} Qc7 {[%emt 0:00:01]} 34. b3 {[%emt 0:00:02]} a5 {[%emt 0:00:01]} 35. f4 {[%emt 0:00:01]} e4 {[%emt 0:00:02]} 36. Rxe4 {[%emt 0:00:05]} Rxe4 {[%emt 0:00:02]} 37. Rxe4 {[%emt 0:00:02]} Qd6 {[%emt 0:00:02]} 38. Kh2 {[%emt 0:00:04]} g5 {[%emt 0:00:02]} 39. Re6 {[%emt 0:00:01]} Qxf4+ {[%emt 0:00:02]} 40. Kg1 {[%emt 0:00:09]} a4 {[%emt 0:00:00]} 41. Re7+ {[%emt 0:00:06]} Kf8 {[%emt 0:00:03]} 42. Rf7+ {[%emt 0:00:01]} Qxf7 {[%emt 0:00:01]} 43. Bxf7 {[%emt 0:00:02]} 1/2-1/2

[Event "Austria Championship Blitz 2024"]
[Site "Innsbruck"]
[Date "2024.06.01"]
[Round "8.16"]
[White "Schranzhofer, Marco"]
[Black "Horvath, Reka"]
[Result "0-1"]
[ECO "B53"]
[WhiteElo "1908"]
[BlackElo "2009"]
[Annotator "RC"]
[PlyCount "102"]
[EventDate "2024.06.01"]
[EventType "swiss"]
[EventCountry "AUT"]
[SourceTitle "playchess.com"]
[Source "ChessBase"]
[SourceQuality "1"]
[TimeControl "180+2"]

1. e4 {[%emt 0:00:01]} c5 {[%emt 0:00:00]} 2. Nf3 {[%emt 0:00:01]} d6 {[%emt 0:00:01]} 3. d4 {[%emt 0:00:01]} cxd4 {[%emt 0:00:00]} 4. Qxd4 {[%emt 0:00:01]} a6 {[%emt 0:00:01]} 5. c4 {[%emt 0:00:05]} Nc6 {[%emt 0:00:01]} 6. Qe3 {[%emt 0:00:01]} Nf6 {[%emt 0:00:04]} 7. h3 {[%emt 0:00:01]} g6 {[%emt 0:00:01]} 8. Nc3 {[%emt 0:00:02]} Bg7 {[%emt 0:00:01]} 9. Be2 {[%emt 0:00:14]} O-O {[%emt 0:00:01]} 10. O-O {[%emt 0:00:02]} Be6 {[%emt 0:00:13]} 11. Rb1 {[%emt 0:00:06]} Rc8 {[%emt 0:00:01]} 12. b3 {[%emt 0:00:02]} Qa5 {[%emt 0:00:15]} 13. Bd2 {[%emt 0:00:53]} Qc7 {[%emt 0:00:01]} 14. Rbc1 {[%emt 0:00:08]} Qb8 {[%emt 0:00:01]} 15. Nd5 {[%emt 0:00:09]} Nd7 {[%emt 0:00:27]} 16. Rfd1 {[%emt 0:00:15]} Rfe8 {[%emt 0:00:07]} 17. Bc3 {[%emt 0:00:12]} Nde5 {[%emt 0:00:17]} 18. Nxe5 {[%emt 0:00:04]} Bxe5 {[%emt 0:00:01]} 19. Bxe5 {[%emt 0:00:02]} Nxe5 {[%emt 0:00:02]} 20. f4 {[%emt 0:00:12]} Nd7 {[%emt 0:00:06]} 21. Bg4 {[%emt 0:00:07]} Bxg4 {[%emt 0:00:05]} 22. hxg4 {[%emt 0:00:01]} b5 {[%emt 0:00:03]} 23. f5 {[%emt 0:00:09]} bxc4 {[%emt 0:00:09]} 24. fxg6 {[%emt 0:00:09]} hxg6 {[%emt 0:00:05]} 25. bxc4 {[%emt 0:00:06]} Ne5 {[%emt 0:00:05]} 26. Qe2 {[%emt 0:00:19]} Qa7+ {[%emt 0:00:12]} 27. Qe3 {[%emt 0:00:16]} Qc5 {[%emt 0:00:08]} 28. Qxc5 {[%emt 0:00:07]} Rxc5 {[%emt 0:00:01]} 29. Ne3 {[%emt 0:00:01]} Rec8 {[%emt 0:00:05]} 30. Rd5 {[%emt 0:00:06]} Kf8 {[%emt 0:00:13]} 31. Rxc5 Rxc5 {[%emt 0:00:01]} 32. Rc3 {[%emt 0:00:06]} Ke8 {[%emt 0:00:08]} 33. Kf2 {[%emt 0:00:02]} Kd7 {[%emt 0:00:04]} 34. a3 {[%emt 0:00:00]} Kc6 {[%emt 0:00:04]} 35. Ke2 {[%emt 0:00:03]} e6 {[%emt 0:00:02]} 36. Kd2 {[%emt 0:00:02]} Nd7 {[%emt 0:00:10]} 37. Kd3 {[%emt 0:00:03]} Nb6 {[%emt 0:00:02]} 38. Kd2 {[%emt 0:00:04]} Re5 {[%emt 0:00:09]} 39. Kd3 {[%emt 0:00:02]} Na4 {[%emt 0:00:01]} 40. Rc2 {[%emt 0:00:03]} Nc5+ {[%emt 0:00:02]} 41. Kd2 {[%emt 0:00:03]} Nxe4+ {[%emt 0:00:02]} 42. Ke2 {[%emt 0:00:01]} Rc5 {[%emt 0:00:06]} 43. Rc1 {[%emt 0:00:01]} d5 {[%emt 0:00:03]} 44. cxd5+ {[%emt 0:00:01]} exd5 {[%emt 0:00:01]} 45. Rf1 {[%emt 0:00:05]} Ng3+ {[%emt 0:00:02]} 46. Kf2 {[%emt 0:00:01]} Nxf1 {[%emt 0:00:02]} 47. Kxf1 {[%emt 0:00:01]} Rc3 {[%emt 0:00:03]} 48. Nd1 {[%emt 0:00:01]} Rxa3 {[%emt 0:00:02]} 49. Kf2 {[%emt 0:00:01]} Ra2+ {[%emt 0:00:02]} 50. Kf3 {[%emt 0:00:01]} d4 {[%emt 0:00:01]} 51. Nf2 {[%emt 0:00:01]} Rxf2+ {[%emt 0:00:50]} 0-1

[Event "Austria Championship Blitz 2024"]
[Site "Innsbruck"]
[Date "2024.06.01"]
[Round "8.18"]
[White "Teuschler, Barbara"]
[Black "Neuschmied, Siegfried"]
[Result "1-0"]
[ECO "B09"]
[WhiteElo "2040"]
[BlackElo "2234"]
[Annotator "RC"]
[PlyCount "63"]
[EventDate "2024.06.01"]
[EventType "swiss"]
[EventCountry "AUT"]
[SourceTitle "playchess.com"]
[Source "ChessBase"]
[SourceQuality "1"]
[TimeControl "180+2"]

1. e4 {[%emt 0:00:00]} g6 {[%emt 0:00:02]} 2. d4 {[%emt 0:00:01]} Bg7 {[%emt 0:00:01]} 3. Nc3 {[%emt 0:00:01]} d6 {[%emt 0:00:01]} 4. f4 {[%emt 0:00:02]} Nf6 {[%emt 0:00:02]} 5. Nf3 {[%emt 0:00:01]} O-O {[%emt 0:00:02]} 6. e5 {[%emt 0:00:01]} dxe5 {[%emt 0:00:16]} 7. fxe5 {[%emt 0:00:03]} Nd5 {[%emt 0:00:01]} 8. Bc4 {[%emt 0:00:04]} Nb6 {[%emt 0:00:02]} 9. Bb3 {[%emt 0:00:10]} Nc6 {[%emt 0:00:02]} 10. O-O {[%emt 0:00:22]} Bg4 {[%emt 0:00:15]} 11. Be3 {[%emt 0:00:02]} Na5 {[%emt 0:00:02]} 12. h3 {[%emt 0:00:19]} Nac4 {[%emt 0:00:25]} 13. Bf2 {[%emt 0:00:02]} Nxb2 {[%emt 0:00:26]} 14. Qe2 {[%emt 0:00:08]} Bxf3 {[%emt 0:00:02]} 15. gxf3 {[%emt 0:00:12]} Qd7 {[%emt 0:00:01]} 16. Kh2 {[%emt 0:00:02]} N2a4 {[%emt 0:00:01]} 17. Nxa4 {[%emt 0:00:11]} Nxa4 {[%emt 0:00:01]} 18. e6 {[%emt 0:00:00]} Qc6 {[%emt 0:01:01]} 19. exf7+ {[%emt 0:00:09]} Kh8 {[%emt 0:00:01]} 20. Qxe7 {[%emt 0:00:45]} Nb6 {[%emt 0:00:14]} 21. Rae1 {[%emt 0:00:07]} a5 {[%emt 0:00:25]} 22. a4 {[%emt 0:00:08]} Nxa4 {[%emt 0:00:01]} 23. Bg3 {[%emt 0:00:00]} Rac8 {[%emt 0:00:06]} 24. Be5 {[%emt 0:00:02]} Nb6 {[%emt 0:00:03]} 25. Bxg7+ {[%emt 0:00:03]} Kxg7 {[%emt 0:00:01]} 26. Qe5+ {[%emt 0:00:01]} Qf6 {[%emt 0:00:03]} 27. Qxa5 {[%emt 0:00:04]} Ra8 {[%emt 0:00:03]} 28. Qc5 {[%emt 0:00:58]} Rac8 29. Re6 {[%emt 0:00:00]} Qf4+ {[%emt 0:00:02]} 30. Kh1 {[%emt 0:00:00]} Qg3 {[%emt 0:00:01]} 31. Qe5+ {[%emt 0:00:00]} Kh6 {[%emt 0:00:21]} 32. Qxg3 {[%emt 0:00:00]} 1-0

[Event "Austria Championship Blitz 2024"]
[Site "Innsbruck"]
[Date "2024.06.01"]
[Round "8.19"]
[White "Kummer, Helmut"]
[Black "Froewis, Annika"]
[Result "0-1"]
[ECO "E12"]
[WhiteElo "2212"]
[BlackElo "2075"]
[Annotator "RC"]
[PlyCount "62"]
[EventDate "2024.06.01"]
[EventType "swiss"]
[EventCountry "AUT"]
[SourceTitle "playchess.com"]
[Source "ChessBase"]
[SourceQuality "1"]
[TimeControl "180+2"]

1. d4 {[%emt 0:00:01]} d5 {[%emt 0:00:01]} 2. c4 {[%emt 0:00:02]} e6 {[%emt 0:00:01]} 3. Nc3 {[%emt 0:00:01]} Nf6 {[%emt 0:00:00]} 4. Bg5 {[%emt 0:00:02]} Be7 {[%emt 0:00:07]} 5. e3 {[%emt 0:00:02]} O-O {[%emt 0:00:02]} 6. Nf3 {[%emt 0:00:02]} b6 {[%emt 0:00:02]} 7. Bd3 {[%emt 0:00:03]} Bb7 {[%emt 0:00:02]} 8. O-O {[%emt 0:00:02]} c5 {[%emt 0:00:04]} 9. cxd5 {[%emt 0:00:24]} Nxd5 {[%emt 0:00:08]} 10. Bxe7 {[%emt 0:00:05]} Qxe7 {[%emt 0:00:02]} 11. Nxd5 {[%emt 0:00:21]} Bxd5 {[%emt 0:00:07]} 12. e4 {[%emt 0:00:20]} Bb7 {[%emt 0:00:04]} 13. Qe2 {[%emt 0:00:07]} Nd7 {[%emt 0:00:20]} 14. Rac1 {[%emt 0:00:10]} Rfd8 {[%emt 0:00:15]} 15. Rfd1 {[%emt 0:00:17]} Rac8 {[%emt 0:00:18]} 16. Bb1 {[%emt 0:00:19]} cxd4 {[%emt 0:00:06]} 17. Rxc8 {[%emt 0:00:11]} Rxc8 {[%emt 0:00:08]} 18. Nxd4 {[%emt 0:00:08]} Nc5 {[%emt 0:00:16]} 19. f3 {[%emt 0:00:27]} Rd8 {[%emt 0:00:16]} 20. h3 {[%emt 0:00:13]} Qf6 {[%emt 0:00:30]} 21. e5 {[%emt 0:00:08]} Qf4 {[%emt 0:00:07]} 22. Qd2 {[%emt 0:00:05]} Qxe5 {[%emt 0:00:11]} 23. Qf2 {[%emt 0:00:08]} g6 {[%emt 0:00:06]} 24. Bc2 {[%emt 0:00:01]} Qf6 {[%emt 0:00:14]} 25. Nb3 {[%emt 0:00:04]} Rxd1+ 26. Bxd1 {[%emt 0:00:01]} Nxb3 {[%emt 0:00:10]} 27. Bxb3 {[%emt 0:00:01]} Qf4 {[%emt 0:00:02]} 28. Qc2 {[%emt 0:00:06]} Qg3 {[%emt 0:00:09]} 29. Qf2 {[%emt 0:00:01]} Qe5 {[%emt 0:00:02]} 30. Qd2 {[%emt 0:00:04]} Qc5+ {[%emt 0:00:02]} 31. Qf2 {[%emt 0:00:01]} Qc1+ {[%emt 0:00:04]} 0-1

[Event "Austria Championship Blitz 2024"]
[Site "Innsbruck"]
[Date "2024.06.01"]
[Round "8.20"]
[White "Wolfgang, Valentin"]
[Black "Schnegg, Anna-Lena"]
[Result "0-1"]
[ECO "B06"]
[WhiteElo "1866"]
[BlackElo "2124"]
[Annotator "RC"]
[PlyCount "64"]
[EventDate "2024.06.01"]
[EventType "swiss"]
[EventCountry "AUT"]
[SourceTitle "playchess.com"]
[Source "ChessBase"]
[SourceQuality "1"]
[TimeControl "180+2"]

1. e4 {[%emt 0:00:01]} g6 {[%emt 0:00:00]} 2. d4 {[%emt 0:00:05]} Bg7 {[%emt 0:00:01]} 3. Nf3 {[%emt 0:00:03]} d6 {[%emt 0:00:01]} 4. c3 {[%emt 0:00:02]} Nd7 {[%emt 0:00:02]} 5. Bd3 {[%emt 0:00:06]} e5 {[%emt 0:00:06]} 6. dxe5 {[%emt 0:00:13]} Nxe5 {[%emt 0:00:56]} 7. Nxe5 {[%emt 0:00:12]} dxe5 {[%emt 0:00:28]} 8. O-O {[%emt 0:00:07]} c6 {[%emt 0:00:09]} 9. Be3 {[%emt 0:00:22]} Nf6 {[%emt 0:00:02]} 10. Nd2 {[%emt 0:00:10]} O-O {[%emt 0:00:03]} 11. Nf3 {[%emt 0:00:23]} Qc7 {[%emt 0:00:28]} 12. h3 {[%emt 0:00:21]} Be6 {[%emt 0:00:02]} 13. Qe2 {[%emt 0:00:12]} b6 {[%emt 0:00:15]} 14. Rfd1 {[%emt 0:00:11]} h6 {[%emt 0:00:01]} 15. a4 {[%emt 0:00:11]} Nh5 {[%emt 0:00:13]} 16. Qd2 {[%emt 0:00:18]} Rfd8 {[%emt 0:00:19]} 17. Bxh6 {[%emt 0:00:21]} Rxd3 {[%emt 0:00:04]} 18. Qxd3 {[%emt 0:00:03]} Bxh6 {[%emt 0:00:02]} 19. Qd6 {[%emt 0:00:13]} Qxd6 {[%emt 0:00:08]} 20. Rxd6 {[%emt 0:00:01]} c5 {[%emt 0:00:01]} 21. Rad1 {[%emt 0:00:01]} Bg7 {[%emt 0:00:07]} 22. Ng5 {[%emt 0:00:02]} Re8 {[%emt 0:00:09]} 23. Nxe6 {[%emt 0:00:02]} Rxe6 {[%emt 0:00:01]} 24. Rd7 {[%emt 0:00:01]} a6 {[%emt 0:00:06]} 25. Ra7 {[%emt 0:00:02]} b5 {[%emt 0:00:01]} 26. axb5 {[%emt 0:00:01]} axb5 {[%emt 0:00:00]} 27. Rdd7 {[%emt 0:00:02]} Rf6 {[%emt 0:00:04]} 28. g4 {[%emt 0:00:01]} Nf4 {[%emt 0:00:01]} 29. g5 {[%emt 0:00:01]} Nxh3+ {[%emt 0:00:01]} 30. Kh2 {[%emt 0:00:01]} Nxg5 {[%emt 0:00:11]} 31. Kg2 {[%emt 0:00:11]} Nxe4 {[%emt 0:00:00]} 32. f3 {[%emt 0:00:02]} Ng5 {[%emt 0:00:00]} 0-1

[Event "Austria Championship Blitz 2024"]
[Site "Innsbruck"]
[Date "2024.06.01"]
[Round "8.21"]
[White "Hyassat, Milana"]
[Black "Khalakhan, Jurij"]
[Result "0-1"]
[ECO "D43"]
[WhiteElo "1761"]
[BlackElo "2175"]
[Annotator "RC"]
[PlyCount "64"]
[EventDate "2024.06.01"]
[EventType "swiss"]
[EventCountry "AUT"]
[SourceTitle "playchess.com"]
[Source "ChessBase"]
[SourceQuality "1"]
[TimeControl "180+2"]

1. d4 {[%emt 0:00:01]} d5 {[%emt 0:00:01]} 2. c4 {[%emt 0:00:01]} c6 {[%emt 0:00:01]} 3. Nc3 {[%emt 0:00:01]} Nf6 {[%emt 0:00:01]} 4. Nf3 {[%emt 0:00:01]} e6 {[%emt 0:00:04]} 5. Bg5 {[%emt 0:00:03]} dxc4 {[%emt 0:00:02]} 6. a4 {[%emt 0:00:00]} h6 {[%emt 0:00:04]} 7. Bh4 {[%emt 0:00:02]} Be7 {[%emt 0:00:05]} 8. e4 {[%emt 0:00:03]} Qa5 {[%emt 0:00:14]} 9. Bxf6 {[%emt 0:00:26]} Bxf6 {[%emt 0:00:02]} 10. Bxc4 {[%emt 0:00:08]} O-O {[%emt 0:00:02]} 11. O-O {[%emt 0:00:03]} Na6 {[%emt 0:00:01]} 12. Qe2 {[%emt 0:00:12]} Nb4 {[%emt 0:00:02]} 13. Rfe1 {[%emt 0:00:31]} Be7 {[%emt 0:00:03]} 14. Rad1 {[%emt 0:00:02]} b6 {[%emt 0:00:23]} 15. Ne5 {[%emt 0:00:09]} Bf6 {[%emt 0:00:15]} 16. Ng4 {[%emt 0:00:11]} Be7 {[%emt 0:00:04]} 17. Qf3 {[%emt 0:00:17]} Bb7 {[%emt 0:00:06]} 18. Qg3 {[%emt 0:00:04]} Qg5 {[%emt 0:00:22]} 19. Qf3 {[%emt 0:00:57]} Rad8 {[%emt 0:00:12]} 20. Ne3 {[%emt 0:00:17]} Qg6 {[%emt 0:00:21]} 21. Ne2 {[%emt 0:00:03]} Bg5 {[%emt 0:00:02]} 22. Nf4 {[%emt 0:00:05]} Qf6 {[%emt 0:00:02]} 23. g3 {[%emt 0:00:04]} Rxd4 {[%emt 0:00:06]} 24. Rxd4 {[%emt 0:00:05]} Qxd4 {[%emt 0:00:01]} 25. Rd1 {[%emt 0:00:02]} Qxb2 {[%emt 0:00:10]} 26. h4 {[%emt 0:00:01]} Bxf4 {[%emt 0:00:10]} 27. Qxf4 {[%emt 0:00:00]} Bc8 {[%emt 0:00:17]} 28. Qc7 {[%emt 0:00:02]} Nc2 {[%emt 0:00:08]} 29. Nxc2 {[%emt 0:00:04]} Qxc2 {[%emt 0:00:01]} 30. Rd8 {[%emt 0:00:03]} Qxc4 {[%emt 0:00:34]} 31. Rxc8 {[%emt 0:00:06]} Rxc8 {[%emt 0:00:08]} 32. Qxc8+ {[%emt 0:00:02]} Kh7 {[%emt 0:00:02]} 0-1

[Event "Austria Championship Blitz 2024"]
[Site "Innsbruck"]
[Date "2024.06.01"]
[Round "8.22"]
[White "Kondrak, Christoph"]
[Black "Neubauer, Anton"]
[Result "1-0"]
[ECO "D02"]
[WhiteElo "1972"]
[BlackElo "1857"]
[Annotator "RC"]
[PlyCount "47"]
[EventDate "2024.06.01"]
[EventType "swiss"]
[EventCountry "AUT"]
[SourceTitle "playchess.com"]
[Source "ChessBase"]
[SourceQuality "1"]
[TimeControl "180+2"]

1. d4 {[%emt 0:00:02]} d5 {[%emt 0:00:01]} 2. Nf3 {[%emt 0:00:01]} Nf6 {[%emt 0:00:01]} 3. Bf4 {[%emt 0:00:01]} e6 {[%emt 0:00:00]} 4. e3 {[%emt 0:00:01]} Be7 {[%emt 0:00:01]} 5. a3 {[%emt 0:00:04]} a6 {[%emt 0:00:01]} 6. Nbd2 {[%emt 0:00:05]} h6 {[%emt 0:00:05]} 7. c4 {[%emt 0:00:02]} dxc4 {[%emt 0:00:05]} 8. Bxc4 {[%emt 0:00:01]} Nbd7 {[%emt 0:00:05]} 9. b4 {[%emt 0:00:08]} c6 {[%emt 0:00:03]} 10. O-O {[%emt 0:00:04]} Nb6 {[%emt 0:00:02]} 11. Bd3 {[%emt 0:00:09]} Nbd5 {[%emt 0:00:01]} 12. Bg3 {[%emt 0:00:01]} O-O {[%emt 0:00:05]} 13. Ne5 {[%emt 0:00:09]} Nd7 {[%emt 0:00:35]} 14. Ndf3 {[%emt 0:00:08]} Nxe5 {[%emt 0:00:06]} 15. Nxe5 {[%emt 0:00:02]} Bd6 {[%emt 0:00:10]} 16. Rc1 {[%emt 0:00:02]} Bd7 {[%emt 0:00:07]} 17. Bb1 {[%emt 0:00:10]} Nf6 {[%emt 0:00:06]} 18. Qc2 {[%emt 0:00:37]} a5 {[%emt 0:00:08]} 19. Nxf7 {[%emt 0:00:11]} Rxf7 {[%emt 0:00:41]} 20. Bxd6 {[%emt 0:00:02]} axb4 {[%emt 0:00:04]} 21. axb4 {[%emt 0:00:00]} Be8 {[%emt 0:00:09]} 22. Be5 {[%emt 0:00:06]} g5 {[%emt 0:00:26]} 23. Qg6+ {[%emt 0:00:11]} Kf8 {[%emt 0:00:27]} 24. Qxh6+ {[%emt 0:00:03]} 1-0

[Event "Austria Championship Blitz 2024"]
[Site "Innsbruck"]
[Date "2024.06.01"]
[Round "8.24"]
[White "Stadlinger, Lea"]
[Black "Erhard, Jakob"]
[Result "0-1"]
[ECO "B07"]
[WhiteElo "1912"]
[BlackElo "2057"]
[Annotator "RC"]
[PlyCount "114"]
[EventDate "2024.06.01"]
[EventType "swiss"]
[EventCountry "AUT"]
[SourceTitle "playchess.com"]
[Source "ChessBase"]
[SourceQuality "1"]
[TimeControl "180+2"]

1. d4 {[%emt 0:00:01]} Nf6 {[%emt 0:00:01]} 2. Bf4 {[%emt 0:00:03]} d6 {[%emt 0:00:01]} 3. Nc3 {[%emt 0:00:03]} g6 {[%emt 0:00:03]} 4. e4 {[%emt 0:00:02]} Bg7 {[%emt 0:00:01]} 5. Qd2 {[%emt 0:00:02]} c6 {[%emt 0:00:02]} 6. O-O-O {[%emt 0:00:02]} b5 {[%emt 0:00:01]} 7. f3 {[%emt 0:00:05]} a5 {[%emt 0:00:02]} 8. g4 {[%emt 0:00:08]} a4 {[%emt 0:00:02]} 9. Nb1 {[%emt 0:00:10]} Nbd7 {[%emt 0:00:28]} 10. h4 {[%emt 0:00:02]} Nb6 {[%emt 0:00:01]} 11. h5 {[%emt 0:00:08]} Be6 {[%emt 0:00:23]} 12. a3 {[%emt 0:00:07]} Bc4 {[%emt 0:00:04]} 13. hxg6 {[%emt 0:00:13]} hxg6 {[%emt 0:00:02]} 14. Rxh8+ {[%emt 0:00:07]} Bxh8 {[%emt 0:00:01]} 15. e5 {[%emt 0:00:06]} Nfd5 {[%emt 0:00:04]} 16. e6 {[%emt 0:00:16]} fxe6 {[%emt 0:00:08]} 17. Bg5 {[%emt 0:00:32]} Kd7 {[%emt 0:00:10]} 18. Bd3 {[%emt 0:00:03]} Qg8 {[%emt 0:00:18]} 19. Ne2 {[%emt 0:00:05]} Bxd3 {[%emt 0:00:09]} 20. Qxd3 {[%emt 0:00:04]} Rf8 {[%emt 0:00:09]} 21. Nbc3 {[%emt 0:00:09]} Bf6 {[%emt 0:00:04]} 22. Bh6 {[%emt 0:00:10]} Rf7 {[%emt 0:00:02]} 23. Ne4 {[%emt 0:00:06]} Rh7 {[%emt 0:00:04]} 24. Bd2 {[%emt 0:00:18]} Rh2 {[%emt 0:00:09]} 25. N2c3 {[%emt 0:00:05]} Nc4 {[%emt 0:00:05]} 26. Nxf6+ {[%emt 0:00:13]} exf6 {[%emt 0:00:05]} 27. Ne4 {[%emt 0:00:12]} Qh8 {[%emt 0:00:11]} 28. Bb4 {[%emt 0:00:26]} Nxb4 {[%emt 0:00:12]} 29. axb4 {[%emt 0:00:00]} f5 {[%emt 0:00:03]} 30. Nc5+ {[%emt 0:00:00]} Ke7 {[%emt 0:00:16]} 31. Nxa4 {[%emt 0:00:00]} Qa8 {[%emt 0:00:02]} 32. b3 {[%emt 0:00:00]} bxa4 {[%emt 0:00:05]} 33. Qxc4 {[%emt 0:00:00]} a3 {[%emt 0:00:05]} 34. Kb1 {[%emt 0:00:05]} a2+ {[%emt 0:00:15]} 35. Ka1 {[%emt 0:00:04]} Rf2 {[%emt 0:00:11]} 36. Re1 {[%emt 0:00:03]} Qc8 {[%emt 0:00:02]} 37. Kxa2 {[%emt 0:00:02]} Rxf3 {[%emt 0:00:15]} 38. gxf5 gxf5 {[%emt 0:00:00]} 39. Rg1 {[%emt 0:00:02]} Kf6 {[%emt 0:00:00]} 40. Kb2 {[%emt 0:00:01]} Qh8 {[%emt 0:00:03]} 41. Qe2 {[%emt 0:00:01]} Qh3 {[%emt 0:00:01]} 42. Qg2 {[%emt 0:00:02]} Qxg2 {[%emt 0:00:02]} 43. Rxg2 {[%emt 0:00:01]} Rf4 {[%emt 0:00:00]} 44. Kc3 {[%emt 0:00:01]} e5 {[%emt 0:00:01]} 45. dxe5+ {[%emt 0:00:02]} dxe5 {[%emt 0:00:01]} 46. Kd3 {[%emt 0:00:02]} Rf3+ {[%emt 0:00:01]} 47. Kc4 {[%emt 0:00:02]} Rf4+ {[%emt 0:00:02]} 48. Kc5 {[%emt 0:00:00]} Re4 {[%emt 0:00:03]} 49. Rg3 {[%emt 0:00:02]} f4 {[%emt 0:00:02]} 50. Rf3 {[%emt 0:00:03]} Kf5 {[%emt 0:00:01]} 51. c4 {[%emt 0:00:01]} Re3 {[%emt 0:00:01]} 52. Rf1 {[%emt 0:00:02]} Rxb3 {[%emt 0:00:01]} 53. b5 {[%emt 0:00:01]} cxb5 {[%emt 0:00:01]} 54. cxb5 {[%emt 0:00:01]} e4 {[%emt 0:00:01]} 55. b6 {[%emt 0:00:01]} f3 {[%emt 0:00:01]} 56. Kc6 {[%emt 0:00:01]} Kf4 {[%emt 0:00:01]} 57. b7 {[%emt 0:00:02]} e3 {[%emt 0:00:01]} 0-1